[Event "7th Sharjah Masters 2024"]
[Site "Sharjah"]
[Date "2024.05.21"]
[Round "8.42"]
[White "Avila Pavas, Santiago"]
[Black "Samant Aditya S"]
[Result "1-0"]
[ECO "B56"]
[WhiteElo "2516"]
[BlackElo "2501"]
[Annotator "TA"]
[PlyCount "56"]
[EventDate "2024.05.13"]
[EventType "swiss"]
[EventCountry "UAE"]
[SourceTitle "playchess.com"]
[Source "ChessBase"]
[SourceQuality "1"]
[TimeControl "5400+30"]

{[%evp 15,56,9,32,48,43,40,40,14,25,0,0,0,0,0,-18,-214,-210,-213,-123,-135,-124,-141,-97,-284,-277,-244,-259,-285,-254,-238,-173,-165,-44,-335,-318,-311,-310,-335,-302,-725,-703,-1061,-1032]} 1. e4 {[%emt 1:31:00]} c5 {[%emt 1:31:00]} 2. Nf3 {[%emt 0:00:30]} d6 {[%emt 0:00:30]} 3. d4 {[%emt 0:00:30]} cxd4 {[%emt 0:00:30]} 4. Nxd4 {[%emt 0:00:30]} Nf6 {[%emt 0:00:30]} 5. Nc3 {[%emt 0:00:30]} Nc6 {[%emt 0:00:30]} 6. f3 {[%emt 0:00:30]} e5 {[%emt 0:00:30]} 7. Nb3 {[%emt 0:00:30]} Be7 {[%emt 0:00:30]} 8. Be3 {[%emt 0:00:30]} Be6 {[%emt 0:00:30]} 9. Qe2 {[%emt 0:00:30]} O-O {[%emt 0:00:30]} 10. O-O-O {[%emt 0:00:30]} Qc8 {[%emt 0:00:30]} 11. g4 {[%emt 0:00:30] White is slightly better.} a5 {[%emt 0:00:30] ...a4 is the strong threat.} 12. Qb5 {[%emt 0:00:30]} Ne8 {[%emt 0:00:30][%cal Oa5a4]} 13. Qa4 {[%emt 0:00:30]} Nc7 {[%emt 0:00:30]} 14. Bb6 {[%emt 0:00:30]} Nb4 {[%emt 0:00:30]} 15. Nxa5 $2 {[%emt 0:00:30] [#]} (15. Bxa5 $2 Nc6 (15... d5 16. Bxb4 Bg5+ 17. Kb1 $17) 16. Kb1 (16. Nd5 $2 Bxd5 17. exd5 Nxa5 $19) 16... Bxb3 17. Qxb3 Rxa5 $19 (17... Nxa5 $2 18. Nd5 $19)) (15. Bxc7 $11 Qxc7 16. a3) 15... Nc6 $1 $19 {[%emt 0:00:30][%mdl 512] Strongly threatening ...Nxa5.} 16. b4 {[%emt 0:00:30] [#]} (16. Nd5 Bxd5) 16... Nd4 $1 {[%emt 0:00:30][%mdl 512]} 17. Qa3 $17 {[%emt 0:00:30]} d5 {[%emt 0:00:30]} (17... Nxf3 $6 18. Bxc7 Qxc7 19. Nb5 $11) 18. Qb2 {[%emt 0:00:30]} dxe4 {[%emt 0:00:30]} (18... Nxf3 19. exd5 (19. Nxd5 Bg5+ 20. Ne3 Nd4 $17) 19... Bxg4 20. d6 Bg5+ 21. Kb1 $16) 19. Bxd4 $2 {[%emt 0:00:30]} (19. fxe4 $17 Bxg4 20. Rd3) 19... exd4 $19 {[%emt 0:00:30]} 20. Nxe4 {[%emt 0:00:30][%cal Oa2a3]} Nd5 {[%emt 0:00:30]} 21. a3 {[%emt 0:00:30]} Ne3 {[%emt 0:00:30]} 22. Rd2 {[%emt 0:00:30]} b6 {[%emt 0:00:30]} 23. Nb3 {[%emt 0:00:30]} Bc4 {[%emt 0:00:30]} ({Better is} 23... Bd5 $19 {Threatens to win with ...Bxe4.} 24. Kb1 Nxf1 25. Rxf1 Qa6) 24. Bd3 $2 {[%emt 0:00:30][%mdl 8192]} (24. Nxd4 $1 $15 Bxf1 (24... Nxf1 $2 {loses.} 25. Nf5 $18) 25. Nf5 Nxf5 26. gxf5 Qxf5 27. Rxf1) 24... Bxd3 {[%emt 0:00:30]} 25. Rxd3 {[%emt 0:00:30] [#]} Nc4 $1 {[%emt 0:00:30][%csl LRa3,LRb2]} ({Not} 25... Rxa3 26. Rxe3 dxe3 27. Qxa3 $18) 26. Qxd4 {[%emt 0:00:30]} Nxa3 {[%emt 0:00:30][%csl Ga3][%cal Rc8c2]} ({But not} 26... Rxa3 27. b5 $19) 27. c3 {[%emt 0:00:30]} (27. Qc3 Qb8 28. Qe1) 27... Qa6 {[%emt 0:00:30] aiming for ...Nc4.} 28. Rhd1 {[%emt 0:00:30]} Nc4 {[%emt 0:00:30][%mdl 32768] Weighted Error Value: White=0.86/Black=0.22 (precise) .  Loses game:     	White=3     	---        Mistake:       	White=1     	Black=2      Inaccurate:     	White=2     	Black=1      OK:         	White=7     	Black=5      Best:        	White=1     	Black=3      Strong:       	---       	Black=1      Brilliant:      	---       	Black=1     . Loss on time!?} 1-0